Cogmind - Beta 15 @@@ ROGUE MODE // 2025.07.15 @ 21:51:27 Player: StaticNoob Result: Destroyed by B-75 Beast with Heavy Machine Gun Performance ------------- Evolutions (3) 1500 Regions Visited (11) 2200 Robots Destroyed (141) 705 Value Destroyed (4502) 4502 Prototype IDs (21) 420 Alien Tech Used (0) 0 Bonus (1331) 1331 TOTAL SCORE: 10658 Bonus ------- High Alert Combat Kills 503 Follower Combat Kills 37 Destroyed Z-Imprinter 1000 Friendly Fire -209 Cogmind --------- Core Integrity 0/700 Matter 226/300 Energy 100/100 System Corruption 0% Temperature Cool (0) Movement Core (50) Location -6/Proximity Caves Parts ------- > --- POWER (1) -------- (None) > --- PROPULSION (3) --- (None) > --- UTILITY (6) ------ Experimental Heat Sink Experimental Heat Sink > --- WEAPON (3) ------- CR-A16's Pointy Stick > --- INVENTORY (5) ---- Zionite Composite Leg I Zionite Biocell (600) Heavy Armor Plating Zionite Laser-S Peak State ------------ > --- POWER ------------ Zionite Light DM Reactor > --- PROPULSION ------- Light Armored Exoskeleton Zionite Composite Leg I > --- UTILITY ---------- Experimental Heat Sink Experimental Heat Sink Large Storage Unit Zionite Biocell Zionite Weapon Casing Zionite Light Carapace > --- WEAPON ----------- Zionite Phaser-S Zionite Phaser-S Zionite Phaser-S > --- INVENTORY -------- Zionite Light DM Reactor Carbon-fiber Leg Improved Titanium Leg Makeshift Leg Flexi-carbon Leg Zionite Composite Leg I Improved Heat Sink Zionite Biocell High-capacity Matter Pod Zionite Weapon Casing Heavy Armor Plating Hacking Drone Bay Zionite Laser-S CR-A16's Pointy Stick [Rating: 83] Favorites ----------- Power Reinforced Deuterium Engine Engine Reinforced Deuterium Engine Power Core Nuclear Core Reactor Zionite Light DM Reactor Propulsion Light Treads Treads Light Treads Leg Light Armored Exoskeleton Wheel Compact Wheel Utility Improved Heat Sink Device Improved Heat Sink Storage Large Storage Unit Processor Improved Targeting Computer Protection Light Armor Plating Weapon Heavy Ion Cannon Energy Gun Force Rifle Energy Cannon Heavy Ion Cannon Ballistic Gun Light Assault Rifle Ballistic Cannon Assault Cannon Launcher Rocket Launcher Special Weapon Plasma Cutter Piercing Weapon CR-A16's Pointy Stick Build | -11 -10 -10 -10 -9 -8 -7 -7 -7 -7 -7 -6 ------- Run | Yrd Mat Min Exi Min Mat Fac Low Low Zio Dee Pro Slots Evolved 6 | . . . . . 4 2 . . . . . Power . | . . . . . . . . . . . . Propulsion 1 | . . . . . 1 . . . . . . Utility 4 | . . . . . 2 2 . . . . . Weapon 1 | . . . . . 1 . . . . . . Parts Attached 101 | 6 3 1 1 . 42 19 3 2 5 18 1 Power 11 | 1 . . . . 3 4 . . . 3 . Engine 6 | 1 . . . . 1 3 . . . 1 . Core 3 | . . . . . 2 1 . . . . . Reactor 2 | . . . . . . . . . . 2 . Propulsion 21 | 2 . . . . 11 4 1 1 . 2 . Treads 13 | 2 . . . . 7 4 . . . . . Leg 7 | . . . . . 3 . 1 1 . 2 . Wheel 1 | . . . . . 1 . . . . . . Hover . | . . . . . . . . . . . . Flight . | . . . . . . . . . . . . Utility 35 | 1 2 . . . 14 7 2 . 2 7 . Device 14 | . . . . . 4 6 . . 2 2 . Storage 5 | 1 1 . . . 2 . . . . 1 . Processor 2 | . . . . . 2 . . . . . . Hackware . | . . . . . . . . . . . . Protection 14 | . 1 . . . 6 1 2 . . 4 . Artifact . | . . . . . . . . . . . . Weapon 34 | 2 1 1 1 . 14 4 . 1 3 6 1 Energy Gun 17 | 2 . 1 . . 6 2 . . 1 5 . Energy Cannon 6 | . . . . . 5 . . . . 1 . Ballistic Gun 1 | . . . . . 1 . . . . . . Ballistic Cannon 1 | . . . . . 1 . . . . . . Launcher 7 | . 1 . 1 . 1 2 . 1 1 . . Special Weapon 1 | . . . . . . . . . 1 . . Impact Weapon . | . . . . . . . . . . . . Slashing Weapon . | . . . . . . . . . . . . Piercing Weapon 1 | . . . . . . . . . . . 1 Special Melee Weapon . | . . . . . . . . . . . . Unidentified Prototypes 12 | . . . . . 2 1 . . 1 8 . Corrupted Parts 1 | . . . . . . . . 1 . . . System Corruption 1 | . . . . . . . . 1 . . . Parts Lost 48 | . . 7 . . 11 6 3 . . 11 10 Power 5 | . . 1 . . 1 1 . . . 1 1 Propulsion 13 | . . 2 . . 5 1 2 . . 1 2 Utility 15 | . . 1 . . 2 3 . . . 4 5 Weapon 15 | . . 3 . . 3 1 1 . . 5 2 Highest Loss Streak 9 | . . 6 . . 2 2 1 . . 8 9 To Critical Strikes . | . . . . . . . . . . . . Average Backups 12 | 1 7 9 5 4 10 14 13 14 13 12 13 Power . | . 1 1 1 1 . . 1 1 1 . 1 Propulsion 1 | . . . . . . . . . 2 3 4 Utility 5 | . 2 4 1 1 4 6 6 7 5 4 5 Weapon 4 | . 3 4 3 2 5 5 4 4 4 2 2 Tool/Special . | . . . . . . . . . . . . Unused Backups 29 | . 1 5 . . 3 4 . . 3 3 10 Power 2 | . . . . . 1 1 . . . . . Propulsion 5 | . . . . . . . . . . 1 4 Utility 14 | . . 4 . . . . . . 3 2 5 Weapon 8 | . 1 1 . . 2 3 . . . . 1 Tool/Special . | . . . . . . . . . . . . Average Slot Usage (%) 91 | . 95 75 . 14 91 99 93 92 92 88 87 Engine 5 | . 14 10 . . . 4 7 7 7 4 . Core 2 | . . . . . 8 2 . . . . . Treads 11 | . 28 21 . . 15 22 13 3 . . . Leg 7 | . . . . . 6 . 2 11 15 14 14 Device 19 | . . . . . 8 23 30 30 30 21 15 Storage 8 | . 14 10 . . 8 7 7 7 7 10 14 Processor 2 | . . . . . 8 5 . . . . . Protection 7 | . 10 10 . . 7 7 7 7 7 11 13 Energy Gun 10 | . 28 20 . . 8 4 7 7 13 10 19 Energy Cannon 7 | . . . . . 11 18 10 7 . 2 . Ballistic Gun 1 | . . . . . 4 . . . . . . Launcher 3 | . . . . 14 . . 3 7 7 8 . Peak Build Rating 83 | 6 8 8 1 1 29 47 47 49 52 83 83 Average Rating 38 | 4 7 5 . 1 22 41 42 48 50 58 77 On Entrance 26 | . 6 8 . 1 1 29 44 47 49 48 83 Naked Turns 126 | . . 49 77 . . . . . . . . Heaviest Build 64 | 14 34 32 3 3 59 64 64 60 60 62 49 Greatest Support 78 | 40 40 40 3 3 60 78 68 45 45 54 54 Greatest Overweight (x) 7 | 1 . . . . 2 1 2 1 1 1 7 Average Overweight (x) . | . . . . . . . . 1 1 . . Largest Inventory Capacity 15 | 8 15 15 5 5 15 15 15 15 15 15 15 Average Capacity 14 | 6 14 12 5 5 14 15 15 15 15 15 15 Most Carried 15 | 2 11 11 5 4 15 15 15 15 15 15 15 Average Carried 12 | 1 7 9 4 4 10 14 14 15 14 13 14 Final Capacity 15 | 8 15 5 5 5 15 15 15 15 15 15 5 Final Carried 15 | 2 11 5 4 4 15 15 15 15 15 15 5 Class Distribution -------------------- 48% | Tank 23% | Scavenger-Gunner 13% | Mutant 10% | Scavenger-Tank Dominant Class ---------------- Mutant | -10/Materials Mutant | -10/Mines Mutant | -10/Exiles Mutant | -9/Mines Scavenger-Gunner | -8/Materials Scavenger-Gunner | -7/Factory Scavenger-Tank | -7/Lower Caves Tank | -7/Lower Caves Tank | -7/Zion Tank | -7/Deep Caves Tank | -6/Proximity Caves Resources | -11 -10 -10 -10 -9 -8 -7 -7 -7 -7 -7 -6 ----------- Run | Yrd Mat Min Exi Min Mat Fac Low Low Zio Dee Pro Matter Collected 2509 | 46 121 107 . . 987 363 279 140 65 346 55 Remotely . | . . . . . . . . . . . . Salvage Created 4770 | . 154 100 . . 1970 1916 189 146 . 220 75 Parts 247 | . 19 6 . . 101 86 11 9 . 12 3 Haulers Intercepted 3 | . . . . . 3 . . . . . . Recyclers Shooed 1 | . . . . . 1 . . . . . . Parts Field Recycled . | . . . . . . . . . . . . Retrieved Matter . | . . . . . . . . . . . . Parts Self-Destructed 22 | . . . . . . . 9 9 1 . 3 Prevented . | . . . . . . . . . . . . Kills | -11 -10 -10 -10 -9 -8 -7 -7 -7 -7 -7 -6 ------- Run | Yrd Mat Min Exi Min Mat Fac Low Low Zio Dee Pro Combat Hostiles Destroyed 115 | . 7 2 . . 42 36 11 7 . 7 3 Guns 27 | . 5 2 . . 12 1 1 1 . 2 3 Cannons 48 | . . . . . 20 26 1 . . 1 . AOE 37 | . 2 . . . 9 7 9 6 . 4 . Classes Destroyed 15 | . 4 . . . 8 1 . . . 2 . Worker 3 | . . . . . 1 2 . . . . . Builder 5 | . . . . . 4 1 . . . . . Hauler 3 | . . . . . 3 . . . . . . Recycler 4 | . . . . . 3 1 . . . . . Operator 2 | . 1 . . . 1 . . . . . . Watcher 8 | . 1 . . . 3 4 . . . . . Swarmer 46 | . 6 . . . 15 8 10 4 . . 3 Grunt 37 | . 1 2 . . 15 17 . 2 . . . Brawler 3 | . . . . . 1 1 . 1 . . . Duelist 2 | . . . . . 1 1 . . . . . Sentry 12 | . . . . . 9 3 . . . . . Hunter 6 | . . . . . 1 4 1 . . . . Programmer 2 | . . . . . . 2 . . . . . Z-Light 6 | . . . . . . . . . . 6 . Packrat 1 | . . . . . . . 1 . . . . Fireman 1 | . . . . . . . . . . 1 . Best Kill Streak 5 | . 3 2 . . 5 5 4 4 . 2 3 Combat Bots Only 4 | . 3 2 . . 4 4 4 4 . 2 3 Max Kills in Single Turn 4 | . 2 1 . . 3 4 2 4 . 1 1 Gunslinging 1 | . 1 . . . . . . . . . . Exploded 4 | . 2 . . . 3 3 2 4 . 1 . Melee . | . . . . . . . . . . . . Uniques/NPCs Destroyed 1 | . . . . . . . . . . 1 . Z-Imprinter (-7/Deep Caves) Combat | -11 -10 -10 -10 -9 -8 -7 -7 -7 -7 -7 -6 -------- Run | Yrd Mat Min Exi Min Mat Fac Low Low Zio Dee Pro Hostile Shots Fired 616 | . 30 44 . . 195 144 29 10 . 82 82 Missed 173 | . 11 12 . . 54 41 14 3 . 29 9 Hits 443 | . 19 32 . . 141 103 15 7 . 53 73 Projectile 443 | . 19 32 . . 141 103 15 7 . 53 73 AOE 13 | . . 13 . . . . . . . . . Critical Strikes 12 | . . . . . 7 3 . . . . 2 Damage Taken 7621 | . 158 647 . . 1989 1309 235 104 . 1580 1599 Core 1138 | . 37 200 . . 185 123 53 14 . 112 414 Absorbed by Shields . | . . . . . . . . . . . . Redirected to Shielding 218 | . . . . . . . . . . . 218 Regen/Repaired (Parts) 242 | . . . . . . 106 . . 136 . . Core Remaining (%) 57 | 100 . . . 5 66 . . . . . . Volleys Fired 292 | . 28 5 . . 116 83 15 9 . 29 7 Largest 3 | . 2 2 . . 3 3 3 3 . 3 3 Hottest 210 | . 80 80 . . 203 210 210 146 . 199 180 Shots Fired 712 | . 55 10 . . 316 229 22 17 . 42 21 Gun 318 | . 54 10 . . 175 32 5 6 . 15 21 Cannon 333 | . . . . . 124 193 7 4 . 5 . Launcher 61 | . 1 . . . 17 4 10 7 . 22 . Special . | . . . . . . . . . . . . Kinetic 76 | . . . . . 76 . . . . . . Thermal 485 | . . . . . 223 225 12 10 . 15 . Explosive 61 | . 1 . . . 17 4 10 7 . 22 . Electromagnetic 69 | . 54 10 . . . . . . . 5 . Phasic 21 | . . . . . . . . . . . 21 Robot Hit Streak 12 | . 7 3 . . 12 12 5 4 . 5 4 Robot Miss Streak 10 | . 10 2 . . 5 5 2 1 . 3 2 Penetration Max . | . . . . . . . . . . . . Secondary Targets 3 | . 1 . . . . . . . . . 2 Max Gunslinging Chain 1 | . 1 . . . . . . . . . 1 Shots Hit Robots 387 | . 21 6 . . 177 134 12 5 . 17 15 Core Hits 249 | . 11 4 . . 96 69 20 15 . 31 3 Critical Kills 3 | . . . . . 1 2 . . . . . Critical Parts Destroyed . | . . . . . . . . . . . . Critical Strikes 7 | . . . . . 4 2 . . . . 1 Burn 3 | . . . . . 3 . . . . . . Meltdown 3 | . . . . . 1 2 . . . . . Impale 1 | . . . . . . . . . . . 1 Melee Attacks 8 | . . . . . . . . . . . 8 Impact . | . . . . . . . . . . . . Slashing . | . . . . . . . . . . . . Piercing 8 | . . . . . . . . . . . 8 Sneak Attacks . | . . . . . . . . . . . . Combat Hostiles . | . . . . . . . . . . . . Follow-up Attacks . | . . . . . . . . . . . . Damage Inflicted 13069 | . 366 97 . . 4310 4374 1155 775 . 1504 488 Guns 2997 | . 284 97 . . 1337 599 72 48 . 164 396 Cannons 5415 | . . . . . 1984 3139 164 80 . 48 . Explosions 4538 | . 82 . . . 968 630 919 647 . 1292 . Melee 92 | . . . . . . . . . . . 92 Ramming 27 | . . . . . 21 6 . . . . . Kinetic 388 | . . . . . 388 . . . . . . Thermal 7247 | . . . . . 2933 3786 236 128 . 164 . Explosive 4490 | . 82 . . . 968 582 919 647 . 1292 . Electromagnetic 429 | . 284 97 . . . . . . . 48 . Impact . | . . . . . . . . . . . . Slashing . | . . . . . . . . . . . . Piercing 92 | . . . . . . . . . . . 92 Phasic 396 | . . . . . . . . . . . 396 Highest Corruption 5 | . . . . . 2 4 4 5 5 . . Average Corruption 3 | . . . . . 2 3 4 4 5 . . Corruption Purged . | . . . . . . . . . . . . Corruption Blocked . | . . . . . . . . . . . . Effects 73 | . . . . . 9 17 26 19 2 . . Message Errors 18 | . . . . . 3 3 6 6 . . . Matter Fused 15 | . . . . . 2 4 6 2 1 . . Heat Flow Errors 8 | . . . . . . 1 3 4 . . . Energy Discharges 4 | . . . . . 2 . 2 . . . . Parts Rejected 3 | . . . . . 1 1 1 . . . . Parts Fused 1 | . . . . . . . . 1 . . . Data Loss (minor) 15 | . . . . . 1 5 5 4 . . . Data Loss (major) 6 | . . . . . . 2 2 1 1 . . Alerts 2 | . . . . . . . 1 1 . . . Weapon Failures 1 | . . . . . . 1 . . . . . Overload Shots . | . . . . . . . . . . . . Overflow Damage 226 | . . . . . 22 65 62 63 . 14 . Projectiles 66 | . . . . . 3 41 22 . . . . Explosions 160 | . . . . . 19 24 40 63 . 14 . Melee . | . . . . . . . . . . . . Knockbacks . | . . . . . . . . . . . . Impact . | . . . . . . . . . . . . Kinetic . | . . . . . . . . . . . . Secondary . | . . . . . . . . . . . . Self-Inflicted Damage 178 | . . . . . 108 37 1 . . 32 . Shots 9 | . . . . . 5 1 1 . . 2 . Rammed 5 | . . . . . 3 2 . . . . . Targets Rammed 6 | . . . . . 4 2 . . . . . Kicked . | . . . . . . . . . . . . Crushed 1 | . . . . . 1 . . . . . . Highest Temperature 563 | . 126 112 . . 389 563 204 217 . 2 . Average Temperature 121 | . 47 57 . . 133 139 81 86 . 2 . Received Heat Transfer 1935 | . . 36 . . 864 393 . 9 . 477 156 Effects 12 | . . . . . 3 9 . . . . . Shutdowns 4 | . . . . . 3 1 . . . . . Energy Bleed 2 | . . . . . . 2 . . . . . Interference 1 | . . . . . . 1 . . . . . Damage (minor) 1 | . . . . . . 1 . . . . . Damage (major) 4 | . . . . . . 4 . . . . . Siege Activations . | . . . . . . . . . . . . Martial Activations . | . . . . . . . . . . . . Shielding Activations . | . . . . . . . . . . . . Robots Disrupted . | . . . . . . . . . . . . Combat Hostiles . | . . . . . . . . . . . . Robots Corrupted . | . . . . . . . . . . . . Combat Hostiles . | . . . . . . . . . . . . Parts Fried . | . . . . . . . . . . . . Impact Corruptions . | . . . . . . . . . . . . Robots Melted 4 | . . . . . 2 2 . . . . . Combat Hostiles 3 | . . . . . 1 2 . . . . . Parts Melted 21 | . . . . . 6 13 1 . . 1 . Heat Transferred 11446 | . . . . . 5402 5193 333 185 . 333 . Parts Sabotaged . | . . . . . . . . . . . . Parts Stolen . | . . . . . . . . . . . . Parts Stripped . | . . . . . . . . . . . . Power Chain Reactions . | . . . . . . . . . . . . Alert | -11 -10 -10 -10 -9 -8 -7 -7 -7 -7 -7 -6 ------- Run | Yrd Mat Min Exi Min Mat Fac Low Low Zio Dee Pro Maximum Alert Level 3 | . . . . . 3 3 . . . . . Low Security (%) 39 | 100 100 100 . 100 42 . . . . . . Level 1 20 | . . . . . 16 36 . . . . . Level 2 30 | . . . . . 37 41 . . . . . Level 3 9 | . . . . . 3 21 . . . . . Level 4 . | . . . . . . . . . . . . Level 5 . | . . . . . . . . . . . . High Security . | . . . . . . . . . . . . Max Security . | . . . . . . . . . . . . Peak Influence 863 | . 138 65 . . 736 863 . . . . . Initial 332 | . . . . . . 332 . . . . . Average 330 | . 39 13 . . 322 521 . . . . . Influence Increases 3404 | . 257 125 . . 1389 1128 275 160 . . 70 Destroy 0b10 Robot/C 2160 | . 140 40 . . 840 720 220 140 . . 60 Destroy 0b10 Robot/NC 125 | . 10 . . . 75 40 . . . . . Destroy Leader 482 | . 32 10 . . 222 148 40 20 . . 10 Successful Hack 62 | . 7 . . . 39 16 . . . . . Disable Machine 105 | . 15 . . . 45 45 . . . . . Destroy Structure 185 | . 8 . . . 108 69 . . . . . Lose Combat Pursuer 285 | . 45 75 . . 60 90 15 . . . . Influence Decreases 3404 | . 257 60 65 . 657 1034 764 407 90 . 70 Entered New Map 926 | . . . 65 . . 400 306 65 90 . . Time Decay 2268 | . 257 50 . . 547 574 428 342 . . 70 Lost Part 210 | . . 10 . . 110 60 30 . . . . Squads Dispatched 16 | . 1 . . . 8 7 . . . . . Investigation 2 | . . . . . 1 1 . . . . . Extermination 3 | . . . . . . 3 . . . . . Reinforcement 7 | . 1 . . . 4 2 . . . . . Assault 1 | . . . . . . 1 . . . . . Garrison 3 | . . . . . 3 . . . . . . Intercept . | . . . . . . . . . . . . Searches Triggered . | . . . . . . . . . . . . Construction Impeded 1 | . . . . . . 1 . . . . . Haulers Reinforced . | . . . . . . . . . . . . Active Scanning Responses . | . . . . . . . . . . . . Cargo Convoy Interrupts . | . . . . . . . . . . . . Stealth | -11 -10 -10 -10 -9 -8 -7 -7 -7 -7 -7 -6 --------- Run | Yrd Mat Min Exi Min Mat Fac Low Low Zio Dee Pro Distress Signals 12 | . 1 . . . 8 3 . . . . . Communications Jammed . | . . . . . . . . . . . . Distress Signals . | . . . . . . . . . . . . Times Spotted 169 | . 17 10 . . 67 44 12 7 . 8 4 Peak Tracking Total 8 | . 4 5 . . 8 5 4 4 . 5 3 Tactical Retreats 9 | . 1 1 . . 3 3 1 . . . . Traps | -11 -10 -10 -10 -9 -8 -7 -7 -7 -7 -7 -6 ------- Run | Yrd Mat Min Exi Min Mat Fac Low Low Zio Dee Pro Traps Triggered 4 | . . . . . 1 3 . . . . . Indirectly . | . . . . . . . . . . . . Trap Hack Attempts . | . . . . . . . . . . . . Triggered . | . . . . . . . . . . . . Disarmed . | . . . . . . . . . . . . Reprogrammed . | . . . . . . . . . . . . Reused . | . . . . . . . . . . . . Traps Extracted . | . . . . . . . . . . . . Installed . | . . . . . . . . . . . . Triggered . | . . . . . . . . . . . . Machines | -11 -10 -10 -10 -9 -8 -7 -7 -7 -7 -7 -6 ---------- Run | Yrd Mat Min Exi Min Mat Fac Low Low Zio Dee Pro Machines Disabled 10 | . 1 . . . 3 3 . . 3 . . Max in Single Turn 1 | . 1 . . . 1 1 . . 1 . . Garrison Access 1 | . . . . . . 1 . . . . . Machines Repaired . | . . . . . . . . . . . . Machines Dismantled 3 | . . . . . . . . . 3 . . Machines Sabotaged . | . . . . . . . . . . . . Overloaded Fab Kills . | . . . . . . . . . . . . Hacking | -11 -10 -10 -10 -9 -8 -7 -7 -7 -7 -7 -6 --------- Run | Yrd Mat Min Exi Min Mat Fac Low Low Zio Dee Pro Machines Accessed 28 | . 3 . 1 . 11 12 . 1 . . . Terminals 16 | . 3 . . . 10 3 . . . . . Fabricators 3 | . . . . . . 3 . . . . . Repair Stations 2 | . . . . . 1 1 . . . . . Recycling Units 2 | . . . . . . 2 . . . . . Scanalyzers 2 | . . . . . . 2 . . . . . Garrison Access 1 | . . . . . . 1 . . . . . Total Hacks 59 | . 9 . 1 . 26 22 . 1 . . . Successful 28 | . 4 . 1 . 13 9 . 1 . . . Failed 30 | . 5 . . . 12 13 . . . . . Catastrophic 5 | . . . . . 3 2 . . . . . Database Lockouts 1 | . . . . . 1 . . . . . . Manual 29 | . 8 . . . 10 11 . . . . . Terminals 41 | . 9 . . . 25 7 . . . . . Fabricators 7 | . . . . . . 7 . . . . . Repair Stations 2 | . . . . . 1 1 . . . . . Recycling Units 3 | . . . . . . 3 . . . . . Scanalyzers 3 | . . . . . . 3 . . . . . Garrison Access 1 | . . . . . . 1 . . . . . Terminal Hacks 16 | . 2 . 1 . 10 2 . 1 . . . Record 1 | . . . 1 . . . . . . . . Robot Analysis 3 | . 1 . . . 2 . . . . . . Prototype ID Bank 5 | . . . . . 4 1 . . . . . Open Door 1 | . . . . . . . . 1 . . . Branch Access Points 2 | . . . . . 1 1 . . . . . Locate Traps 2 | . 1 . . . 1 . . . . . . Recall Investigation 1 | . . . . . 1 . . . . . . Zone Layout 1 | . . . . . 1 . . . . . . Fabricator Hacks 1 | . . . . . . 1 . . . . . Network Status 1 | . . . . . . 1 . . . . . Repair Station Hacks . | . . . . . . . . . . . . Recycling Unit Hacks 2 | . . . . . . 2 . . . . . Retrieve Components 2 | . . . . . . 2 . . . . . Scanalyzer . | . . . . . . . . . . . . Garrison Access Hacks 1 | . . . . . . 1 . . . . . Seal Access 1 | . . . . . . 1 . . . . . Unauthorized Hacks 8 | . 2 . . . 3 3 . . . . . Terminals 6 | . 2 . . . 3 1 . . . . . Botnet 6 | . 2 . . . 3 1 . . . . . Fabricators 1 | . . . . . . 1 . . . . . Fabnet 1 | . . . . . . 1 . . . . . Repair Stations 1 | . . . . . . 1 . . . . . Patch 1 | . . . . . . 1 . . . . . Recycling Units . | . . . . . . . . . . . . Scanalyzers . | . . . . . . . . . . . . Garrison Access . | . . . . . . . . . . . . Data Cores Recovered 2 | . 1 . . . 1 . . . . . . Used . | . . . . . . . . . . . . Hacking Detections 21 | . 3 . . . 11 7 . . . . . Full Trace Events . | . . . . . . . . . . . . Feedback Events . | . . . . . . . . . . . . Feedback Blocked . | . . . . . . . . . . . . Robot Schematics Acquired . | . . . . . . . . . . . . Robots Built . | . . . . . . . . . . . . Authchips . | . . . . . . . . . . . . Time . | . . . . . . . . . . . . Total Robot Build Rating . | . . . . . . . . . . . . Part Schematics Acquired . | . . . . . . . . . . . . Parts Built . | . . . . . . . . . . . . Authchips . | . . . . . . . . . . . . Time . | . . . . . . . . . . . . Total Part Build Rating . | . . . . . . . . . . . . Parts Repaired . | . . . . . . . . . . . . Time . | . . . . . . . . . . . . Parts Recycled . | . . . . . . . . . . . . Recycled Matter . | . . . . . . . . . . . . Retrieved Matter . | . . . . . . . . . . . . Retrieved Components 6 | . . . . . . 6 . . . . . Parts Scanalyzed . | . . . . . . . . . . . . Part Schematics Acquired . | . . . . . . . . . . . . Parts Damaged . | . . . . . . . . . . . . Bothacking | -11 -10 -10 -10 -9 -8 -7 -7 -7 -7 -7 -6 ------------ Run | Yrd Mat Min Exi Min Mat Fac Low Low Zio Dee Pro Used RIF Installer . | . . . . . . . . . . . . Robots Hacked . | . . . . . . . . . . . . Non-combat . | . . . . . . . . . . . . Combat . | . . . . . . . . . . . . Robot Hacks Applied . | . . . . . . . . . . . . Relay Couplers Released . | . . . . . . . . . . . . Fabnet Peak Effective % 3 | . . . . . . . . . . . 3 Robots Rewired . | . . . . . . . . . . . . Allies Hacked . | . . . . . . . . . . . . Hacks Repelled . | . . . . . . . . . . . . Allies | -11 -10 -10 -10 -9 -8 -7 -7 -7 -7 -7 -6 -------- Run | Yrd Mat Min Exi Min Mat Fac Low Low Zio Dee Pro Total Allies 3 | . . 1 . . . . . . 2 . . Largest Group 2 | . . 1 . . . . . . 2 2 . Highest-Rated Group 67 | . . 31 . . . . . . 67 67 . Highest-Rated Ally 39 | . . 31 . . . . . . 39 39 . Total Orders . | . . . . . . . . . . . . Ally Attacks 14 | . . 2 . . . . . . . 12 . Total Damage 137 | . . 22 . . . . . . . 115 . Kills 1 | . . . . . . . . . . 1 . Allies Corrupted . | . . . . . . . . . . . . Allies Melted . | . . . . . . . . . . . . Intel | -11 -10 -10 -10 -9 -8 -7 -7 -7 -7 -7 -6 ------- Run | Yrd Mat Min Exi Min Mat Fac Low Low Zio Dee Pro Active Infowar (turns) 822 | . . . . . 822 . . . . . . Optics 793 | . . . . . 793 . . . . . . Structural 29 | . . . . . 29 . . . . . . Robot Analysis Total 3 | . 1 . . . 2 . . . . . . Derelict Logs Recovered 5 | . . 1 . . . . 1 . 2 . 1 Drone Launches . | . . . . . . . . . . . . Drone Recoveries . | . . . . . . . . . . . . Exploration | -11 -10 -10 -10 -9 -8 -7 -7 -7 -7 -7 -6 ------------- Run | Yrd Mat Min Exi Min Mat Fac Low Low Zio Dee Pro Turns Passed 9762 | 65 774 218 80 8 2038 1751 1051 774 1945 750 308 Spaces Moved 4669 | 36 422 193 157 16 861 840 419 322 839 381 183 Core 299 | 3 . 98 157 16 23 . . . . . 2 Treads 2198 | 33 422 95 . . 531 840 277 . . . . Legs 2134 | . . . . . 269 . 142 322 839 381 181 Wheels 38 | . . . . . 38 . . . . . . Hover . | . . . . . . . . . . . . Flight . | . . . . . . . . . . . . Fastest Speed 50 | 50 160 50 50 50 50 160 160 220 220 125 125 Average Speed 180 | 152 160 104 50 50 178 166 240 231 220 167 129 Slowest Speed 400 | 160 160 160 50 50 270 240 360 250 220 250 400 Overloaded Moves . | . . . . . . . . . . . . Propulsion Burnouts . | . . . . . . . . . . . . Robots Hopped . | . . . . . . . . . . . . Potential Cave-ins . | . . . . . . . . . . . . Cave-ins Triggered . | . . . . . . . . . . . . Exploration Rate (%) 51 | 5 74 63 53 14 82 33 70 59 82 50 35 Regions Visited 11 Branch Regions 8 Pre-discovered Areas 6 | . . . 1 1 . . . . 3 . 1 Known Exits Taken 1 | . . . . . . 1 . . . . . Unknown Exits Taken 10 | 1 1 1 1 1 1 . 1 1 1 1 . Scrap Searched 11 | . . . . . . . 5 1 4 . 1 Spaces Dug 6 | . . . . . 2 1 . . . 3 . Terrain Destroyed 416 | . 8 . . . 121 78 64 40 . 96 9 Melee . | . . . . . . . . . . . . Projectile 67 | . . . . . 38 20 . . . . 9 AOE 349 | . 8 . . . 83 58 64 40 . 96 . Terrain Rammed . | . . . . . . . . . . . . Walls Destroyed . | . . . . . . . . . . . . Machines Disabled . | . . . . . . . . . . . . Actions | -11 -10 -10 -10 -9 -8 -7 -7 -7 -7 -7 -6 --------- Run | Yrd Mat Min Exi Min Mat Fac Low Low Zio Dee Pro Total 5400 | 43 465 199 157 15 1127 1050 444 338 889 453 220 Wait 126 | . . . . . 48 56 1 2 . 2 17 Move 4658 | 35 421 192 156 15 860 839 418 321 838 380 183 Hop . | . . . . . . . . . . . . Pick Up 59 | 2 10 1 . . 19 10 1 1 6 8 1 Fast Attach 66 | 6 2 . . . 25 16 1 1 3 11 1 Attach 37 | . . 1 1 . 16 7 2 . 1 7 2 Detach 6 | . . . . . 5 1 . . . . . Swap 48 | . 2 . . . 14 16 5 2 4 4 1 Drop 67 | . 2 . . . 20 20 1 2 10 12 . Fire 292 | . 28 5 . . 116 83 15 9 . 29 7 Melee 8 | . . . . . . . . . . . 8 Ram 1 | . . . . . 1 . . . . . . Kick . | . . . . . . . . . . . . Crush 5 | . . . . . 3 2 . . . . . Escape Stasis . | . . . . . . . . . . . . Rewire . | . . . . . . . . . . . . Trap . | . . . . . . . . . . . . Miscellaneous 27 | . . . . . . . . . 27 . . Route ------- -11/Scrapyard -10/Materials (discovered 3 exits: [*Mat x2] / [*Min]) -10/Mines (discovered 2 exits: [*Mat] / *Exi) -10/Exiles -9/Mines -8/Materials (discovered 2 exits: *Fac x2) -7/Factory (discovered 2 exits: *Low x2) -7/Lower Caves -7/Lower Caves -7/Zion (discovered 2 exits: [*Dee] / *Pro) -7/Deep Caves -6/Proximity Caves (discovered 1 exit: [*Fac]) History --------- Turn | Location | Event 6 | -11/Scrapyard | Discovered new exit (range 15) 66 | -11/Scrapyard | Entered Materials 311 | -10/Materials | Build established: Mutant 476 | -10/Materials | Discovered new exit (range 3) 607 | -10/Materials | Discovered new exit (range 16) 724 | -10/Materials | Discovered new exit (range 13) 840 | -10/Materials | Entered Mines 862 | -10/Mines | Assembled infested the area 967 | -10/Mines | Met a Derelict testing a Signal Generator 970 | -10/Mines | Discovered new exit (range 7) 1009 | -10/Mines | Released all parts (1) 1019 | -10/Mines | Core integrity fell below 50% 1040 | -10/Mines | Lost 6 parts (1p2n1u2w) 1046 | -10/Mines | Core integrity fell below 20% 1056 | -10/Mines | Deemed a non-threat by the Exiles lab entrance 1056 | -10/Mines | Discovered new exit (range 5) 1058 | -10/Mines | Entered Exiles 1071 | -10/Exiles | Met 8R-AWN 1080 | -10/Exiles | Met EX-HEX 1096 | -10/Exiles | Met EX-BIN 1109 | -10/Exiles | Met EX-DEC 1111 | -10/Exiles | Learned location of Zion (-7) 1130 | -10/Exiles | Discovered new exit (range 14) 1138 | -10/Exiles | Entered Mines 1139 | -9/Mines | Learned location of Storage (-9) 1140 | -9/Mines | Discovered new exit (range 9) 1146 | -9/Mines | Entered Materials 1146 | -8/Materials | Evolved 4 slots: Propulsion x1, Utility x2, Weapon x1 1517 | -8/Materials | Build established: Tank 2147 | -8/Materials | Discovered new exit (range 16) 2391 | -8/Materials | Build established: Scavenger-Gunner 2661 | -8/Materials | Garrison activated, responded to threat 2899 | -8/Materials | Central database locked down 3065 | -8/Materials | Discovered new exit (range 14) 3184 | -8/Materials | Entered Factory 3184 | -7/Factory | Evolved 2 slots: Utility x2 4512 | -7/Factory | Identified exit to Lower Caves 4784 | -7/Factory | First assault squad dispatched 4935 | -7/Factory | Entered Lower Caves 4961 | -7/Lower Caves | Build established: Scavenger-Tank 5197 | -7/Lower Caves | Encountered a Warlord checkpoint 5669 | -7/Lower Caves | Learned 4 Factory zone layouts 5829 | -7/Lower Caves | Build established: Tank 5924 | -7/Lower Caves | Discovered new exit (range 4) 5986 | -7/Lower Caves | Entered another Lower Caves area 6002 | -7/Lower Caves | Entered a destroyed Warlord outpost 6197 | -7/Lower Caves | Encountered a Warlord checkpoint 6738 | -7/Lower Caves | Discovered new exit (range 8) 6760 | -7/Lower Caves | Entered Zion 6866 | -7/Zion | System corruption cleaned by Quarantine Array 6950 | -7/Zion | Identified exit to Proximity Caves 7441 | -7/Zion | Found Prototype Device 7441 | -7/Zion | Identified Mobile Refinery Mk. CCLXVII 7603 | -7/Zion | Found CR-A16's Pointy Stick 7657 | -7/Zion | Given the Hacking Drone Bay 7719 | -7/Zion | Found Prototype Device 7916 | -7/Zion | Discovered new exit (range 5) 7919 | -7/Zion | Saw the warning signs outside the Deep Caves entrance 8034 | -7/Zion | Learned Factory emergency access door positions 8182 | -7/Zion | Learned Factory stockpile data 8266 | -7/Zion | Learned location of Quarantine (-2) 8469 | -7/Zion | Gained Derelict followers 8603 | -7/Zion | Learned location of Armory (-3) 8705 | -7/Zion | Entered Deep Caves 8705 | -7/Deep Caves | Accompanied by 2 allies 8886 | -7/Deep Caves | Attacked by Z-Imprinter 8903 | -7/Deep Caves | Destroyed Z-Imprinter 8936 | -7/Deep Caves | Lost 3 parts (1u2w) 9087 | -7/Deep Caves | Z-Facility disabled 9168 | -7/Deep Caves | Lost 8 parts (1p1n3u3w) 9219 | -7/Deep Caves | Found Prototype Protection 9219 | -7/Deep Caves | Identified Zio. Weapon Casing 9236 | -7/Deep Caves | Found Zio. Weapon Casing 9449 | -7/Deep Caves | Discovered new exit (range 6) 9455 | -7/Deep Caves | Entered Proximity Caves 9467 | -6/Proximity Caves | Core integrity fell below 50% 9656 | -6/Proximity Caves | Learned location of Extension (-5) 9661 | -6/Proximity Caves | Discovered new exit (range 11) 9683 | -6/Proximity Caves | Spotted B-75 Beast 9748 | -6/Proximity Caves | Core integrity fell below 20% 9763 | -6/Proximity Caves | Destroyed by B-75 Beast with Heavy Machine Gun Last Messages --------------- 09722_ Knocked back. 09725_ Zio. Weapon Casing blasted off. 09728_ Knocked back. 09732_ Zio. Phaser-S destroyed. 09732_ Knocked back. 09733_ Acquired Zio. Weapon Casing. 09735_ Knocked back. 09738_ Zio. Light DM Reactor destroyed. 09738_ Knocked back. 09741_ Lgt. Armored Exoskeleton destroyed. 09741_ Zio. Weapon Casing destroyed. 09741_ Knocked back. 09747_ Zio. Phaser-S destroyed. 09747_ Zio. Composite Leg I blasted off. 09747_ Knocked back. 09750_ Acquired 7 matter. 09750_ Zio. Biocell destroyed. 09750_ Knocked back. 09754_ Imp. Titanium Leg destroyed. 09763_ Lrg. Storage Unit destroyed. Map ----- +----------------------------------------------------+ | ?????????????????????????????????????????????????? | | ?????????????????????????????????????????????????? | | ?????????????????????????????????????????????????? | | ?????????????????????????????????????????????????? | | ?????????????????????????????????????????????????? | | ?????????????????????????????????????????????????? | | ?????????????????????????????????????????????????? | | ????????????????????????????? ???????????????? | | ????????????????????????????? ??????????????? | | ????????????????????????????? ??????????????? | | ????????????????????????????? ??????????????? | | ????????????????????????????? ??????????????? | | ????????????????????????????? ?????????????? | | ????????????????????????????? ??????????????? | | ?????????????????????????????# ?????????????? | | ?????????????????????? ????## ??????????????? | | #??????????????###### ?????# ???????????????? | | ###??????????? ??????# #???????????????? | | ###????????# ????????# #???????????????? | | #?####?## #?##???????? #???????????????? | | #?# ### #?## ##?????##BB#????????????????? | | # ###] #?# ##????#;BB##???????????????? | | # * # ## ##### ;%=;#???????????????? | | ! ## ## ## ;;;% ###??????????????? | | ######## ## # =![ % #??????????????? | | #??????# #???## !=@= #??????????????? | | #??????# ##### # %<*! % # #??????????????? | | ##??????# ;### ##??????????????? | | #???????######## ####?######???????????????? | | # ##??????????????## # #????????????????????????? | | ###????????????????######????????????????????????? | | ?????????????????????????????????????????????????? | | ?????????????????????????????????????????????????? | | ?????????????????????????????????????????????????? | | ?????????????????????????????????????????????????? | | ?????????????????????????????????????????????????? | | ?????????????????????????????????????????????????? | | ?????????????????????????????????????????????????? | | ?????????????????????????????????????????????????? | | ?????????????????????????????????????????????????? | | ?????????????????????????????????????????????????? | | ?????????????????????????????????????????????????? | | ?????????????????????????????????????????????????? | | ?????????????????????????????????????????????????? | | ?????????????????????????????????????????????????? | | ?????????????????????????????????????????????????? | | ?????????????????????????????????????????????????? | | ?????????????????????????????????????????????????? | | ?????????????????????????????????????????????????? | | ?????????????????????????????????????????????????? | +----------------------------------------------------+ Best States ------------- Heat Dissipation 101 Energy Generation 27 Energy Capacity 890 Matter Stores 300 Matter Capacity 300 Sight Range 20 Terrain Scan Density 10 Armor Coverage 400 Weapon Shielding 100 Weapon Cycling 15 Evasion (%) 55 Targeting Accuracy 6 Recoil Reduction 3 Item Schematics ----------------- None Robot Schematics ------------------ None Fabricated ------------ Nothing Repaired ---------- Nothing Alien Tech Used ----------------- None Achievements -------------- None Challenges ------------ None Game ------ Seed CoolantDamperMultitool Manual? 0 Play Time 01:02:26 Cumulative 118.1 hours Start 2025.07.15 @ 20:51:08 End 2025.07.15 @ 21:51:27 Sessions 1 Manual Loads 0 Difficulty Rogue Special Mode None Game No. 117 Rogue 117 Adventurer 0 Explorer 0 Win Type - Total 2 Types 1/0/1/0/0/0/0/0/0/0 Lore% 61 Gallery% 61 Achievement% 55 Wizard Run 0 Options --------- Layout 1 ASCII 0 Keyboard 0 Movement Numpad Keybinds 0 Fullscreen 1 Font 24/Smallcaps Map View 50x35 Zoom Use 0% Tactical HUD 1 Map Filters NONE Filters NONE Steam 1 RUN: a497eb67-e550-4336-9620-5c25baac80ea